[Event "Titled Tuesday Blitz January 31 Early 2023"]
[White "So, Wesley"]
[Black "Mikaelyan, Arman"]
[WhiteFideId "5202213"]
[BlackFideId "13304852"]
[WhiteElo "2760"]
[BlackElo "2523"]
[Result "1-0"]
[Round "03"]
[TimeControl "180+2"]
[Date "2023.01.31"]
[WhiteClock "0:01:01"]
[BlackClock "0:00:01"]

1. e4 {[%clk 0:03:00]}  Nf6 {[%clk 0:02:57]} 2. e5 {[%clk 0:03:00]}  Nd5 {[%clk 0:02:57]} 3. d4 {[%clk 0:03:01]}  d6 {[%clk 0:02:58]} 4. Nf3 {[%clk 0:03:01]}  dxe5 {[%clk 0:02:58]} 5. Nxe5 {[%clk 0:03:02]}  c6 {[%clk 0:02:59]} 6. Be2 {[%clk 0:03:02]}  Bf5 {[%clk 0:02:58]} 7. O-O {[%clk 0:03:03]}  Nd7 {[%clk 0:02:58]} 8. Nf3 {[%clk 0:03:03]}  e6 {[%clk 0:02:58]} 9. c4 {[%clk 0:03:01]}  N5f6 {[%clk 0:02:57]} 10. Nh4 {[%clk 0:02:58]}  Bxb1 {[%clk 0:02:50]} 11. Rxb1 {[%clk 0:02:59]}  Bd6 {[%clk 0:02:50]} 12. g3 {[%clk 0:02:57]}  O-O {[%clk 0:02:50]} 13. Qc2 {[%clk 0:02:53]}  c5 {[%clk 0:02:45]} 14. dxc5 {[%clk 0:02:48]}  Bxc5 {[%clk 0:02:18]} 15. b4 {[%clk 0:02:49]}  Be7 {[%clk 0:02:07]} 16. Rd1 {[%clk 0:02:39]}  Qc7 {[%clk 0:02:04]} 17. Bf4 {[%clk 0:02:38]}  e5 {[%clk 0:02:02]} 18. Be3 {[%clk 0:02:37]}  Rfc8 {[%clk 0:01:59]} 19. Nf5 {[%clk 0:02:31]}  Bf8 {[%clk 0:01:59]} 20. c5 {[%clk 0:02:17]}  g6 {[%clk 0:01:59]} 21. Nh6+ {[%clk 0:02:16]}  Bxh6 {[%clk 0:01:50]} 22. Bxh6 {[%clk 0:02:17]}  a5 {[%clk 0:01:51]} 23. a3 {[%clk 0:02:07]}  axb4 {[%clk 0:01:49]} 24. axb4 {[%clk 0:02:08]}  b6 {[%clk 0:01:50]} 25. Bf3 {[%clk 0:02:03]}  Ra3 {[%clk 0:01:31]} 26. Bg2 {[%clk 0:01:49]}  bxc5 {[%clk 0:01:29]} 27. bxc5 {[%clk 0:01:50]}  Nxc5 {[%clk 0:01:19]} 28. Rdc1 {[%clk 0:01:41]}  Ng4 {[%clk 0:01:15]} 29. Bd2 {[%clk 0:01:37]}  Qd8 {[%clk 0:00:22]} 30. Bb4 {[%clk 0:01:32]}  Rd3 {[%clk 0:00:19]} 31. Bxc5 {[%clk 0:01:28]}  Rd2 {[%clk 0:00:20]} 32. Qa4 {[%clk 0:01:27]}  Qf6 {[%clk 0:00:13]} 33. Qxg4 {[%clk 0:01:15]}  Rxc5 {[%clk 0:00:14]} 34. Qf3 {[%clk 0:01:14]}  Rxc1+ {[%clk 0:00:11]} 35. Rxc1 {[%clk 0:01:14]}  Qxf3 {[%clk 0:00:11]} 36. Bxf3 {[%clk 0:01:15]}  Rd6 {[%clk 0:00:12]} 37. h4 {[%clk 0:01:14]}  Rd7 {[%clk 0:00:11]} 38. Rb1 {[%clk 0:01:12]}  Kg7 {[%clk 0:00:12]} 39. Rb7 {[%clk 0:01:12]}  Rd6 {[%clk 0:00:08]} 40. h5 {[%clk 0:01:10]}  Rf6 {[%clk 0:00:06]} 41. Kg2 {[%clk 0:01:10]}  Kh6 {[%clk 0:00:05]} 42. Bd5 {[%clk 0:01:09]}  Kg7 {[%clk 0:00:02]} 43. h6+ {[%clk 0:01:09]}  Kxh6 {[%clk 0:00:03]} 44. Rxf7 {[%clk 0:01:09]}  Rd6 {[%clk 0:00:03]} 45. Bf3 {[%clk 0:01:07]}  Rb6 {[%clk 0:00:02]} 46. Re7 {[%clk 0:01:07]}  Rb5 {[%clk 0:00:03]} 47. Be2 {[%clk 0:01:07]}  Ra5 {[%clk 0:00:03]} 48. Bc4 {[%clk 0:01:07]}  Kg5 {[%clk 0:00:02]} 49. Rxh7 {[%clk 0:01:06]}  Rc5 {[%clk 0:00:03]} 50. Rh4 {[%clk 0:01:06]}  Kf6 {[%clk 0:00:02]} 51. Rg4 {[%clk 0:01:05]}  Kf5 {[%clk 0:00:02]} 52. Rh4 {[%clk 0:01:03]}  g5 {[%clk 0:00:02]} 53. Bd3+ {[%clk 0:01:03]}  Kf6 {[%clk 0:00:02]} 54. Rh6+ {[%clk 0:01:03]}  Kf7 {[%clk 0:00:02]} 55. Rg6 {[%clk 0:01:02]}  Rc3 {[%clk 0:00:03]} 56. Bf5 {[%clk 0:01:02]}  Rb3 {[%clk 0:00:01]} 57. g4 {[%clk 0:01:01]} 1-0


[Site "https://www.chess.com"]

[Event "Titled Tuesday Blitz January 31 Early 2023"]
[White "Fier, Alexandr"]
[Black "Pranav, V"]
[WhiteFideId "2107139"]
[BlackFideId "25060783"]
[WhiteElo "2589"]
[BlackElo "2597"]
[Result "1-0"]
[Round "03"]
[TimeControl "180+2"]
[Date "2023.01.31"]
[WhiteClock "0:01:10"]
[BlackClock "0:00:01"]

1. d4 {[%clk 0:03:00]}  Nf6 {[%clk 0:02:59]} 2. c4 {[%clk 0:03:01]}  e6 {[%clk 0:02:58]} 3. Nc3 {[%clk 0:03:00]}  Bb4 {[%clk 0:02:58]} 4. e3 {[%clk 0:03:00]}  O-O {[%clk 0:02:58]} 5. Ne2 {[%clk 0:03:01]}  Re8 {[%clk 0:02:57]} 6. a3 {[%clk 0:03:01]}  Bf8 {[%clk 0:02:58]} 7. Ng3 {[%clk 0:03:00]}  d5 {[%clk 0:02:58]} 8. cxd5 {[%clk 0:03:00]}  exd5 {[%clk 0:02:59]} 9. Bd3 {[%clk 0:03:01]}  c6 {[%clk 0:02:59]} 10. O-O {[%clk 0:03:01]}  g6 {[%clk 0:02:58]} 11. b4 {[%clk 0:02:59]}  Nbd7 {[%clk 0:02:57]} 12. Rb1 {[%clk 0:02:59]}  a6 {[%clk 0:02:57]} 13. f3 {[%clk 0:02:57]}  Bg7 {[%clk 0:02:37]} 14. Bd2 {[%clk 0:02:56]}  Nf8 {[%clk 0:02:36]} 15. Nge2 {[%clk 0:02:56]}  Ne6 {[%clk 0:02:25]} 16. Qe1 {[%clk 0:02:55]}  b6 {[%clk 0:02:20]} 17. Qf2 {[%clk 0:02:54]}  Bd7 {[%clk 0:02:15]} 18. h3 {[%clk 0:02:54]}  a5 {[%clk 0:02:12]} 19. e4 {[%clk 0:02:54]}  axb4 {[%clk 0:02:10]} 20. axb4 {[%clk 0:02:54]}  c5 {[%clk 0:01:45]} 21. bxc5 {[%clk 0:02:43]}  bxc5 {[%clk 0:01:44]} 22. e5 {[%clk 0:02:42]}  cxd4 {[%clk 0:01:29]} 23. Nxd4 {[%clk 0:02:34]}  Nc5 {[%clk 0:01:22]} 24. Bb5 {[%clk 0:02:10]}  Rxe5 {[%clk 0:01:18]} 25. Nc6 {[%clk 0:02:10]}  Bxc6 {[%clk 0:01:06]} 26. Bxc6 {[%clk 0:02:10]}  d4 {[%clk 0:01:04]} 27. Bxa8 {[%clk 0:02:04]}  Nd3 {[%clk 0:01:04]} 28. Qh4 {[%clk 0:01:59]}  dxc3 {[%clk 0:00:41]} 29. Bxc3 {[%clk 0:01:58]}  Rc5 {[%clk 0:00:37]} 30. Qd4 {[%clk 0:01:51]}  Qxa8 {[%clk 0:00:35]} 31. Qxd3 {[%clk 0:01:50]}  Rc8 {[%clk 0:00:35]} 32. Bxf6 {[%clk 0:01:42]}  Bxf6 {[%clk 0:00:36]} 33. Rbd1 {[%clk 0:01:40]}  Kg7 {[%clk 0:00:35]} 34. f4 {[%clk 0:01:37]}  Rc3 {[%clk 0:00:32]} 35. Qd5 {[%clk 0:01:37]}  Qa7+ {[%clk 0:00:30]} 36. Kh1 {[%clk 0:01:37]}  Rc5 {[%clk 0:00:22]} 37. Qe4 {[%clk 0:01:36]}  Rc3 {[%clk 0:00:15]} 38. Rb1 {[%clk 0:01:35]}  Qa3 {[%clk 0:00:12]} 39. Kh2 {[%clk 0:01:26]}  h5 {[%clk 0:00:08]} 40. Rb7 {[%clk 0:01:26]}  h4 {[%clk 0:00:07]} 41. Qe6 {[%clk 0:01:21]}  Kh6 {[%clk 0:00:05]} 42. Rxf7 {[%clk 0:01:19]}  Bg7 {[%clk 0:00:04]} 43. Qg4 {[%clk 0:01:14]}  Kh7 {[%clk 0:00:02]} 44. Qxh4+ {[%clk 0:01:10]}  Kg8 {[%clk 0:00:02]} 45. Rd7 {[%clk 0:01:11]}  Bf8 {[%clk 0:00:01]} 46. Qg4 {[%clk 0:01:10]} 1-0


[Site "https://www.chess.com"]

[Event "Titled Tuesday Blitz January 31 Early 2023"]
[White "Acor, Corey"]
[Black "Bortnyk, Olexandr"]
[WhiteFideId "2024861"]
[BlackFideId "14120828"]
[WhiteElo "2216"]
[BlackElo "2605"]
[Result "1-0"]
[Round "03"]
[TimeControl "180+2"]
[Date "2023.01.31"]
[WhiteClock "0:00:06"]
[BlackClock "0:00:03"]

1. e4 {[%clk 0:02:58]}  Nf6 {[%clk 0:02:58]} 2. e5 {[%clk 0:02:55]}  Nd5 {[%clk 0:02:56]} 3. d4 {[%clk 0:02:55]}  d6 {[%clk 0:02:56]} 4. c4 {[%clk 0:02:55]}  Nb6 {[%clk 0:02:56]} 5. exd6 {[%clk 0:02:52]}  exd6 {[%clk 0:02:55]} 6. Nc3 {[%clk 0:02:48]}  Be7 {[%clk 0:02:55]} 7. Nf3 {[%clk 0:02:48]}  O-O {[%clk 0:02:51]} 8. Be3 {[%clk 0:02:44]}  Bg4 {[%clk 0:02:48]} 9. Be2 {[%clk 0:02:42]}  Nc6 {[%clk 0:02:44]} 10. b3 {[%clk 0:02:39]}  Bf6 {[%clk 0:02:39]} 11. Rc1 {[%clk 0:02:34]}  Re8 {[%clk 0:02:26]} 12. O-O {[%clk 0:02:34]}  h6 {[%clk 0:02:23]} 13. d5 {[%clk 0:02:27]}  Ne7 {[%clk 0:01:57]} 14. Nd4 {[%clk 0:02:18]}  Bxe2 {[%clk 0:01:56]} 15. Ncxe2 {[%clk 0:02:19]}  Nd7 {[%clk 0:01:55]} 16. Qd2 {[%clk 0:02:12]}  Ng6 {[%clk 0:01:51]} 17. Ng3 {[%clk 0:02:03]}  Bxd4 {[%clk 0:01:47]} 18. Bxd4 {[%clk 0:02:01]}  Qg5 {[%clk 0:01:47]} 19. f4 {[%clk 0:02:00]}  Qg4 {[%clk 0:01:45]} 20. Rc3 {[%clk 0:01:49]}  Nc5 {[%clk 0:01:26]} 21. f5 {[%clk 0:01:41]}  Ne5 {[%clk 0:01:20]} 22. Rf4 {[%clk 0:01:20]}  Qg5 {[%clk 0:01:15]} 23. h4 {[%clk 0:01:19]}  Qd8 {[%clk 0:01:09]} 24. Nh5 {[%clk 0:01:13]}  Kh7 {[%clk 0:01:01]} 25. Rg3 {[%clk 0:01:11]}  Rg8 {[%clk 0:01:01]} 26. Bxe5 {[%clk 0:00:51]}  dxe5 {[%clk 0:01:01]} 27. Rfg4 {[%clk 0:00:51]}  g6 {[%clk 0:00:56]} 28. fxg6+ {[%clk 0:00:43]}  fxg6 {[%clk 0:00:57]} 29. b4 {[%clk 0:00:15]}  Nd7 {[%clk 0:00:56]} 30. Qd3 {[%clk 0:00:14]}  Qe8 {[%clk 0:00:52]} 31. c5 {[%clk 0:00:14]}  Qf7 {[%clk 0:00:36]} 32. c6 {[%clk 0:00:13]}  e4 {[%clk 0:00:26]} 33. Rxe4 {[%clk 0:00:08]}  bxc6 {[%clk 0:00:20]} 34. dxc6 {[%clk 0:00:06]}  Nf6 {[%clk 0:00:20]} 35. Rf4 {[%clk 0:00:05]}  Rad8 {[%clk 0:00:17]} 36. Qf3 {[%clk 0:00:05]}  gxh5 {[%clk 0:00:16]} 37. Rxf6 {[%clk 0:00:04]}  Rd1+ {[%clk 0:00:03]} 38. Kh2 {[%clk 0:00:04]}  Qxf6 {[%clk 0:00:02]} 39. Qxf6 {[%clk 0:00:04]}  Rxg3 {[%clk 0:00:02]} 40. Kxg3 {[%clk 0:00:04]}  Rd3+ {[%clk 0:00:03]} 41. Kh2 {[%clk 0:00:04]}  Rd6 {[%clk 0:00:04]} 42. Qe7+ {[%clk 0:00:04]}  Kg6 {[%clk 0:00:04]} 43. Qxc7 {[%clk 0:00:05]}  Rf6 {[%clk 0:00:04]} 44. Qd7 {[%clk 0:00:05]}  a5 {[%clk 0:00:05]} 45. c7 {[%clk 0:00:05]}  Rf4 {[%clk 0:00:02]} 46. c8=Q {[%clk 0:00:05]}  Rxh4+ {[%clk 0:00:03]} 47. Kg1 {[%clk 0:00:06]} 1-0


[Site "https://www.chess.com"]

[Event "Titled Tuesday Blitz January 31 Early 2023"]
[White "Kopylov, Alexander A."]
[Black "Makhnev, Denis"]
[WhiteFideId "4164857"]
[BlackFideId "13707647"]
[WhiteElo "2397"]
[BlackElo "2483"]
[Result "0-1"]
[Round "03"]
[TimeControl "180+2"]
[Date "2023.01.31"]
[WhiteClock "0:00:08"]
[BlackClock "0:00:40"]

1. d4 {[%clk 0:02:25]}  Nf6 {[%clk 0:02:57]} 2. g3 {[%clk 0:02:25]}  e6 {[%clk 0:02:52]} 3. Bg2 {[%clk 0:02:20]}  d5 {[%clk 0:02:52]} 4. Nf3 {[%clk 0:02:18]}  b5 {[%clk 0:02:52]} 5. O-O {[%clk 0:02:18]}  Bb7 {[%clk 0:02:52]} 6. Bg5 {[%clk 0:02:19]}  Nbd7 {[%clk 0:02:52]} 7. Nbd2 {[%clk 0:02:19]}  Be7 {[%clk 0:02:51]} 8. Re1 {[%clk 0:02:18]}  O-O {[%clk 0:02:50]} 9. c3 {[%clk 0:02:18]}  h6 {[%clk 0:02:48]} 10. Bxf6 {[%clk 0:02:18]}  Nxf6 {[%clk 0:02:49]} 11. Ne5 {[%clk 0:02:18]}  c5 {[%clk 0:02:48]} 12. e3 {[%clk 0:02:15]}  Bd6 {[%clk 0:02:39]} 13. Nd3 {[%clk 0:02:11]}  c4 {[%clk 0:02:40]} 14. Nf4 {[%clk 0:02:11]}  Qc7 {[%clk 0:02:36]} 15. Nh5 {[%clk 0:02:07]}  Nxh5 {[%clk 0:02:29]} 16. Qxh5 {[%clk 0:02:07]}  f5 {[%clk 0:02:30]} 17. f3 {[%clk 0:01:54]}  Rad8 {[%clk 0:02:26]} 18. e4 {[%clk 0:01:44]}  dxe4 {[%clk 0:02:26]} 19. fxe4 {[%clk 0:01:45]}  e5 {[%clk 0:02:26]} 20. exf5 {[%clk 0:01:34]}  Bxg2 {[%clk 0:02:19]} 21. Kxg2 {[%clk 0:01:35]}  exd4 {[%clk 0:02:20]} 22. cxd4 {[%clk 0:01:35]}  Bb4 {[%clk 0:02:20]} 23. Re2 {[%clk 0:01:30]}  Rxd4 {[%clk 0:01:48]} 24. Nf3 {[%clk 0:01:28]}  Rd5 {[%clk 0:01:48]} 25. g4 {[%clk 0:01:27]}  Qc6 {[%clk 0:01:41]} 26. Rf1 {[%clk 0:01:09]}  Bc5 {[%clk 0:01:32]} 27. Re6 {[%clk 0:00:59]}  Rd2+ {[%clk 0:01:32]} 28. Kh1 {[%clk 0:00:59]}  Rd6 {[%clk 0:01:33]} 29. Ree1 {[%clk 0:00:25]}  Rd3 {[%clk 0:01:17]} 30. Kg2 {[%clk 0:00:23]}  Be3 {[%clk 0:01:16]} 31. Kg3 {[%clk 0:00:19]}  b4 {[%clk 0:01:13]} 32. Ne5 {[%clk 0:00:17]}  Qd6 {[%clk 0:01:11]} 33. Rf3 {[%clk 0:00:15]}  Bd4 {[%clk 0:01:03]} 34. f6 {[%clk 0:00:11]}  Rxf3+ {[%clk 0:00:40]} 35. Kxf3 {[%clk 0:00:12]}  Qxf6+ {[%clk 0:00:41]} 36. Qf5 {[%clk 0:00:08]}  Qxf5+ {[%clk 0:00:40]} 0-1


[Site "https://www.chess.com"]

[Event "Titled Tuesday Blitz January 31 Early 2023"]
[White "Korobov, Anton"]
[Black "Goltsev, Dmitry"]
[WhiteFideId "14105730"]
[BlackFideId "24176710"]
[WhiteElo "2664"]
[BlackElo "2269"]
[Result "1-0"]
[Round "03"]
[TimeControl "180+2"]
[Date "2023.01.31"]
[WhiteClock "0:01:26"]
[BlackClock "0:01:48"]

1. d4 {[%clk 0:03:00]}  Nf6 {[%clk 0:02:57]} 2. c4 {[%clk 0:03:01]}  e6 {[%clk 0:02:57]} 3. Nc3 {[%clk 0:03:01]}  d5 {[%clk 0:02:57]} 4. cxd5 {[%clk 0:03:01]}  exd5 {[%clk 0:02:58]} 5. Bg5 {[%clk 0:03:00]}  c6 {[%clk 0:02:58]} 6. e3 {[%clk 0:03:01]}  Bf5 {[%clk 0:02:58]} 7. Qf3 {[%clk 0:03:00]}  Bg6 {[%clk 0:02:57]} 8. Bxf6 {[%clk 0:03:00]}  Qxf6 {[%clk 0:02:58]} 9. Qxf6 {[%clk 0:03:00]}  gxf6 {[%clk 0:02:59]} 10. Nf3 {[%clk 0:03:01]}  Nd7 {[%clk 0:02:59]} 11. Nh4 {[%clk 0:03:00]}  Bb4 {[%clk 0:02:59]} 12. f3 {[%clk 0:02:56]}  h5 {[%clk 0:02:59]} 13. Kf2 {[%clk 0:02:55]}  O-O-O {[%clk 0:02:58]} 14. g3 {[%clk 0:02:48]}  Kb8 {[%clk 0:02:58]} 15. a3 {[%clk 0:02:45]}  Bd6 {[%clk 0:02:56]} 16. Ne2 {[%clk 0:02:39]}  Rde8 {[%clk 0:02:51]} 17. Nf4 {[%clk 0:02:38]}  Rhg8 {[%clk 0:02:46]} 18. Rd1 {[%clk 0:02:29]}  Nf8 {[%clk 0:02:41]} 19. Bd3 {[%clk 0:02:22]}  Bxf4 {[%clk 0:02:35]} 20. gxf4 {[%clk 0:02:11]}  Bxd3 {[%clk 0:02:35]} 21. Rxd3 {[%clk 0:02:11]}  Ng6 {[%clk 0:02:24]} 22. Nf5 {[%clk 0:01:57]}  Re7 {[%clk 0:02:23]} 23. Nxe7 {[%clk 0:01:56]}  Nxe7 {[%clk 0:02:18]} 24. Rg1 {[%clk 0:01:56]}  Rf8 {[%clk 0:02:17]} 25. Rg7 {[%clk 0:01:52]}  Nf5 {[%clk 0:02:16]} 26. Rh7 {[%clk 0:01:52]}  h4 {[%clk 0:02:15]} 27. e4 {[%clk 0:01:50]}  Nd6 {[%clk 0:02:13]} 28. e5 {[%clk 0:01:46]}  fxe5 {[%clk 0:02:12]} 29. dxe5 {[%clk 0:01:47]}  Nc4 {[%clk 0:02:12]} 30. b3 {[%clk 0:01:34]}  Nxa3 {[%clk 0:02:11]} 31. f5 {[%clk 0:01:34]}  Nb5 {[%clk 0:02:09]} 32. f4 {[%clk 0:01:34]}  Nc7 {[%clk 0:02:07]} 33. Rh3 {[%clk 0:01:32]}  a5 {[%clk 0:02:06]} 34. R3xh4 {[%clk 0:01:32]}  b5 {[%clk 0:02:04]} 35. Rh8 {[%clk 0:01:32]}  Rc8 {[%clk 0:02:04]} 36. e6 {[%clk 0:01:26]}  fxe6 {[%clk 0:01:55]} 37. f6 {[%clk 0:01:26]}  e5 {[%clk 0:01:48]} 38. f5 {[%clk 0:01:26]} 1-0


[Site "https://www.chess.com"]

[Event "Titled Tuesday Blitz January 31 Early 2023"]
[White "Svane, Rasmus"]
[Black "Iliaguev, Nisim"]
[WhiteFideId "4657101"]
[BlackFideId "2817276"]
[WhiteElo "2623"]
[BlackElo "2402"]
[Result "0-1"]
[Round "03"]
[TimeControl "180+2"]
[Date "2023.01.31"]
[WhiteClock "0:00:05"]
[BlackClock "0:00:14"]

1. Nf3 {[%clk 0:02:52]}  Nf6 {[%clk 0:03:00]} 2. g3 {[%clk 0:02:52]}  d5 {[%clk 0:02:57]} 3. Bg2 {[%clk 0:02:50]}  Nbd7 {[%clk 0:02:58]} 4. d4 {[%clk 0:02:49]}  b5 {[%clk 0:02:57]} 5. a3 {[%clk 0:02:46]}  e6 {[%clk 0:02:57]} 6. Nc3 {[%clk 0:02:43]}  a6 {[%clk 0:02:54]} 7. e4 {[%clk 0:02:41]}  dxe4 {[%clk 0:02:47]} 8. Ng5 {[%clk 0:02:40]}  Bb7 {[%clk 0:02:45]} 9. Ngxe4 {[%clk 0:02:39]}  Qc8 {[%clk 0:02:36]} 10. O-O {[%clk 0:02:33]}  Be7 {[%clk 0:02:35]} 11. Bf4 {[%clk 0:02:26]}  O-O {[%clk 0:02:28]} 12. Qe2 {[%clk 0:02:19]}  c5 {[%clk 0:02:19]} 13. dxc5 {[%clk 0:02:17]}  Nxc5 {[%clk 0:02:08]} 14. Nxc5 {[%clk 0:01:48]}  Bxc5 {[%clk 0:01:59]} 15. Rfd1 {[%clk 0:01:42]}  Bxg2 {[%clk 0:01:49]} 16. Kxg2 {[%clk 0:01:43]}  Qc6+ {[%clk 0:01:47]} 17. Qf3 {[%clk 0:01:43]}  Qxf3+ {[%clk 0:01:46]} 18. Kxf3 {[%clk 0:01:44]}  Rfd8 {[%clk 0:01:44]} 19. a4 {[%clk 0:01:37]}  b4 {[%clk 0:01:40]} 20. Ne4 {[%clk 0:01:37]}  Nxe4 {[%clk 0:01:37]} 21. Kxe4 {[%clk 0:01:38]}  Bxf2 {[%clk 0:01:36]} 22. a5 {[%clk 0:01:07]}  Bc5 {[%clk 0:01:25]} 23. Rd3 {[%clk 0:00:59]}  Kf8 {[%clk 0:01:04]} 24. Rad1 {[%clk 0:00:54]}  Ke7 {[%clk 0:01:00]} 25. g4 {[%clk 0:00:52]}  f6 {[%clk 0:00:53]} 26. h4 {[%clk 0:00:51]}  e5 {[%clk 0:00:51]} 27. Bg3 {[%clk 0:00:50]}  Rd4+ {[%clk 0:00:43]} 28. Rxd4 {[%clk 0:00:48]}  Bxd4 {[%clk 0:00:44]} 29. Be1 {[%clk 0:00:46]}  Rb8 {[%clk 0:00:41]} 30. c3 {[%clk 0:00:47]}  bxc3 {[%clk 0:00:41]} 31. bxc3 {[%clk 0:00:48]}  Bc5 {[%clk 0:00:38]} 32. Rd5 {[%clk 0:00:48]}  Bd6 {[%clk 0:00:35]} 33. Bf2 {[%clk 0:00:45]}  Rc8 {[%clk 0:00:32]} 34. Kd3 {[%clk 0:00:41]}  Ke6 {[%clk 0:00:31]} 35. c4 {[%clk 0:00:41]}  e4+ {[%clk 0:00:31]} 36. Kc3 {[%clk 0:00:35]}  Be5+ {[%clk 0:00:26]} 37. Kb3 {[%clk 0:00:24]}  g6 {[%clk 0:00:24]} 38. Rd1 {[%clk 0:00:17]}  f5 {[%clk 0:00:24]} 39. gxf5+ {[%clk 0:00:18]}  gxf5 {[%clk 0:00:25]} 40. Bb6 {[%clk 0:00:17]}  f4 {[%clk 0:00:23]} 41. c5 {[%clk 0:00:18]}  e3 {[%clk 0:00:19]} 42. Re1 {[%clk 0:00:16]}  Kf5 {[%clk 0:00:19]} 43. Kc4 {[%clk 0:00:13]}  Ke4 {[%clk 0:00:20]} 44. Rg1 {[%clk 0:00:13]}  f3 {[%clk 0:00:20]} 45. Rg4+ {[%clk 0:00:13]}  Kf5 {[%clk 0:00:19]} 46. Rg5+ {[%clk 0:00:13]}  Kf4 {[%clk 0:00:18]} 47. Kd5 {[%clk 0:00:10]}  f2 {[%clk 0:00:17]} 48. Rxe5 {[%clk 0:00:08]}  f1=Q {[%clk 0:00:15]} 49. Re7 {[%clk 0:00:08]}  Qd3+ {[%clk 0:00:14]} 50. Ke6 {[%clk 0:00:09]}  Qe4+ {[%clk 0:00:14]} 51. Kd6 {[%clk 0:00:06]}  Qxe7+ {[%clk 0:00:14]} 52. Kxe7 {[%clk 0:00:07]}  e2 {[%clk 0:00:14]} 53. Kd7 {[%clk 0:00:08]}  Rxc5 {[%clk 0:00:14]} 54. Bxc5 {[%clk 0:00:06]}  e1=Q {[%clk 0:00:14]} 55. Bb6 {[%clk 0:00:07]}  Qe2 {[%clk 0:00:14]} 56. Kc6 {[%clk 0:00:07]}  h5 {[%clk 0:00:14]} 57. Kb7 {[%clk 0:00:07]}  Kg4 {[%clk 0:00:15]} 58. Bd8 {[%clk 0:00:07]}  Qb5+ {[%clk 0:00:14]} 59. Ka7 {[%clk 0:00:08]}  Kf5 {[%clk 0:00:14]} 60. Bb6 {[%clk 0:00:05]}  Ke6 {[%clk 0:00:15]} 61. Kb7 {[%clk 0:00:06]}  Kd7 {[%clk 0:00:15]} 62. Ka7 {[%clk 0:00:05]}  Kc8 {[%clk 0:00:14]} 0-1


[Site "https://www.chess.com"]

[Event "Titled Tuesday Blitz January 31 Early 2023"]
[White "Mosadeghpour, Masoud"]
[Black "Sokolovsky, Yahli"]
[WhiteFideId "12519278"]
[BlackFideId "2820242"]
[WhiteElo "2472"]
[BlackElo "2461"]
[Result "1-0"]
[Round "03"]
[TimeControl "180+2"]
[Date "2023.01.31"]
[WhiteClock "0:01:36"]
[BlackClock "0:00:03"]

1. e4 {[%clk 0:03:00]}  g6 {[%clk 0:02:55]} 2. d4 {[%clk 0:03:00]}  Bg7 {[%clk 0:02:56]} 3. Nc3 {[%clk 0:03:00]}  a6 {[%clk 0:02:55]} 4. Be3 {[%clk 0:02:57]}  d6 {[%clk 0:02:55]} 5. f3 {[%clk 0:02:57]}  b5 {[%clk 0:02:54]} 6. h4 {[%clk 0:02:50]}  h5 {[%clk 0:02:52]} 7. Qd2 {[%clk 0:02:45]}  Nf6 {[%clk 0:02:42]} 8. O-O-O {[%clk 0:02:37]}  b4 {[%clk 0:02:28]} 9. Nd5 {[%clk 0:02:24]}  Nxd5 {[%clk 0:02:26]} 10. exd5 {[%clk 0:02:25]}  a5 {[%clk 0:02:21]} 11. Bb5+ {[%clk 0:02:19]}  Bd7 {[%clk 0:02:02]} 12. Bc4 {[%clk 0:02:19]}  Bf5 {[%clk 0:01:52]} 13. Ne2 {[%clk 0:02:13]}  Nd7 {[%clk 0:01:49]} 14. Ng3 {[%clk 0:02:12]}  Nb6 {[%clk 0:01:49]} 15. Nxf5 {[%clk 0:02:13]}  Nxc4 {[%clk 0:01:01]} 16. Nxg7+ {[%clk 0:02:12]}  Kf8 {[%clk 0:01:02]} 17. Ne6+ {[%clk 0:02:06]}  fxe6 {[%clk 0:00:58]} 18. Bh6+ {[%clk 0:02:04]}  Kg8 {[%clk 0:00:57]} 19. Qg5 {[%clk 0:01:56]}  Kh7 {[%clk 0:00:26]} 20. g4 {[%clk 0:01:55]}  exd5 {[%clk 0:00:22]} 21. gxh5 {[%clk 0:01:53]}  Rg8 {[%clk 0:00:22]} 22. Rhg1 {[%clk 0:01:48]}  Qe8 {[%clk 0:00:21]} 23. Rde1 {[%clk 0:01:46]}  e5 {[%clk 0:00:20]} 24. b3 {[%clk 0:01:44]}  a4 {[%clk 0:00:11]} 25. bxc4 {[%clk 0:01:42]}  b3 {[%clk 0:00:12]} 26. a3 {[%clk 0:01:40]}  b2+ {[%clk 0:00:11]} 27. Kb1 {[%clk 0:01:40]}  dxc4 {[%clk 0:00:10]} 28. dxe5 {[%clk 0:01:40]}  d5 {[%clk 0:00:11]} 29. e6 {[%clk 0:01:38]}  d4 {[%clk 0:00:05]} 30. e7 {[%clk 0:01:38]}  d3 {[%clk 0:00:04]} 31. hxg6+ {[%clk 0:01:37]}  Rxg6 {[%clk 0:00:04]} 32. Qxg6+ {[%clk 0:01:37]}  Qxg6 {[%clk 0:00:05]} 33. Rxg6 {[%clk 0:01:38]}  Kxg6 {[%clk 0:00:03]} 34. e8=Q+ {[%clk 0:01:36]}  Rxe8 {[%clk 0:00:03]} 35. Rxe8 {[%clk 0:01:36]} 1-0


[Site "https://www.chess.com"]